[Event "24th Hoogeschool Zeeland 2022"]
[Site "Vlissingen"]
[Date "2022.08.09"]
[Round "5.22"]
[White "Honkoop, Gilian"]
[Black "Lacrosse, Marc"]
[Result "1/2-1/2"]
[ECO "E05"]
[WhiteElo "2205"]
[BlackElo "2003"]
[Annotator "TA"]
[PlyCount "111"]
[EventDate "2022.08.05"]
[EventType "swiss"]
[EventCountry "NED"]
[SourceTitle "playchess.com"]
[Source "ChessBase"]
[SourceQuality "1"]
[TimeControl "40/5400+30:1800+30"]

{[%evp 20,111,17,20,29,8,27,31,66,54,64,54,57,37,34,45,72,64,62,66,98,89,95,95,89,98,95,71,88,72,65,15,14,21,18,12,25,0,0,0,0,3,8,8,8,20,196,185,181,179,182,171,204,191,172,0,0,0,445,445,456,357,559,580,208,0,1331,1118,893,227,972,1093,790,695,433,0,0,0,0,0,0,0,0,0,0,0,0,0,0,0,0,0,0,0]} 1. d4 {[%emt 0:00:01]} d5 {[%emt 0:03:53]} 2. Nf3 {[%emt 0:00:04]} Nf6 {[%emt 0:00:55]} 3. c4 {[%emt 0:00:03]} e6 {[%emt 0:00:17]} 4. g3 {[%emt 0:00:04]} Be7 {[%emt 0:01:19]} 5. Bg2 {[%emt 0:00:03]} O-O {[%emt 0:00:08]} 6. O-O {[%emt 0:00:03]} dxc4 {[%emt 0:01:15]} 7. Qc2 {[%emt 0:00:05]} a6 {[%emt 0:01:03]} 8. a4 {[%emt 0:00:04]} Bd7 {[%emt 0:03:14]} 9. Qxc4 {[%emt 0:00:30]} Bc6 {[%emt 0:00:46]} 10. Bf4 {[%emt 0:00:11]} Nbd7 {[%emt 0:10:37]} 11. Nc3 {[%emt 0:02:07] 11.Qc1 is the fancy move.} Rc8 {[%emt 0:14:29] E05: Open Catalan: 5 Nf3 Be7.} 12. Rfe1 {[%emt 0:04:55]} Nb6 {[%emt 0:19:22]} 13. Qb3 {[%emt 0:03:37] [#]} Bd5 $146 {[%emt 0:10:41] White is slightly better.} ({Predecessor:} 13... a5 14. e4 Bb4 15. Qc2 Qe7 16. Ne5 Rfd8 17. Nxc6 bxc6 18. Rad1 h6 19. Re2 c5 {½-½ (51) Kachiani Gersinska,K (2365)-Bojkovic,N (2270) Smederevska Palanka 1990}) 14. Nxd5 {[%emt 0:16:44] White is more active.} Qxd5 {[%emt 0:08:54]} 15. Qd3 {[%emt 0:03:01]} Qc4 {[%emt 0:07:14]} 16. Ne5 {[%emt 0:06:09][%csl LRb7,LRc4]} Qxd3 {[%emt 0:00:37]} 17. Nxd3 {[%emt 0:00:03]} c6 {[%emt 0:02:07]} 18. Rec1 {[%emt 0:21:45]} Rfd8 {[%emt 0:01:44]} 19. Bd2 {[%emt 0:00:08]} Nbd5 {[%emt 0:04:10]} 20. Ba5 {[%emt 0:02:13]} b6 {[%emt 0:01:17]} 21. Bd2 {[%emt 0:00:52]} c5 {[%emt 0:03:32]} 22. dxc5 {[%emt 0:02:47]} bxc5 {[%emt 0:00:22]} 23. Ba5 {[%emt 0:00:53] A strong pair of Bishops.} Re8 {[%emt 0:01:11]} 24. e4 {[%emt 0:10:16]} Nb4 {[%emt 0:00:35]} 25. Bxb4 {[%emt 0:03:00]} (25. Ne5 $14) 25... cxb4 $11 {[%emt 0:00:06]} 26. e5 {[%emt 0:00:02] aiming for Rxc8.} Nd5 {[%emt 0:00:19]} 27. Bxd5 {[%emt 0:01:02]} exd5 {[%emt 0:00:04]} 28. Rxc8 {[%emt 0:00:18]} (28. Nf4 $5 {[%cal Rf4d5]}) 28... Rxc8 {[%emt 0:00:05][%mdl 4096] Endgame KRB-KRN} 29. Rc1 {[%emt 0:00:01]} Rc4 {[%emt 0:01:27]} 30. b3 {[%emt 0:01:07]} Rc3 {[%emt 0:02:00]} 31. Rxc3 {[%emt 0:01:06]} bxc3 {[%emt 0:00:04] KB-KN} 32. Kf1 {[%emt 0:00:07]} c2 $2 {[%emt 0:00:45]} (32... Kf8 $11 {and Black stays safe.}) 33. Ke2 $18 {[%emt 0:00:17]} Bb4 {[%emt 0:00:17][%cal Og7g5]} 34. Nc1 {[%emt 0:00:04]} Bc5 {[%emt 0:01:21]} 35. f3 {[%emt 0:01:09][%cal Bf2f3,Bf3f4][%mdl 32]} Kf8 {[%emt 0:00:19]} 36. Kd3 {[%emt 0:00:23]} Bg1 {[%emt 0:00:22]} 37. Kxc2 $2 {[%emt 0:01:16]} (37. h3 $1 $18) 37... Bxh2 $11 {[%emt 0:00:16]} 38. Ne2 {[%emt 0:00:02]} h5 $2 {[%emt 0:01:21][%mdl 8192] [#]} (38... g5 $1 $11) 39. f4 $1 $18 {[%emt 0:00:02]} Ke7 {[%emt 0:00:42]} 40. Kd3 {[%emt 0:00:12] Threatens to win with b4.} Ke6 {[%emt 0:00:36]} (40... a5 $142 41. Ke3 f6) 41. Ke3 {[%emt 0:33:45]} g5 {[%emt 0:06:36]} 42. Kf3 {[%emt 0:00:00]} ({Better is} 42. fxg5 $18 Kxe5 43. b4) 42... h4 $2 {[%emt 0:04:57][%mdl 8192]} (42... gxf4 $11 43. Nxf4+ (43. gxf4 a5 $11) 43... Kxe5) 43. gxh4 {[%emt 0:00:00]} gxh4 {[%emt 0:07:01]} 44. b4 $2 {[%emt 0:00:00]} (44. Kg2) 44... d4 $2 {[%emt 0:05:04]} (44... h3 45. Kg4 Bg1 46. f5+ (46. Nxg1 $2 h2 $19) (46. Kxh3 Bb6 $16) 46... Kd7 47. Kxh3 (47. Nxg1 $2 h2 $19) 47... Ba7) 45. Nxd4+ {[%emt 0:05:08]} Kd5 {[%emt 0:00:14] [#]} 46. b5 $1 {[%emt 0:00:42]} axb5 {[%emt 0:01:31] [#]} 47. axb5 $2 {[%emt 0:00:22]} h3 $1 $11 {[%emt 0:03:54] The position is equal.} (47... Kxd4 $2 48. b6 h3 49. b7 Bxf4 50. b8=Q $18 (50. Kxf4 h2 $11)) 48. Ne2 {[%emt 0:05:25] Hoping for Kg4.} Kc5 {[%emt 0:00:35]} 49. Kg4 {[%emt 0:00:32]} Bxf4 $1 {[%emt 0:01:01]} 50. Kxf4 {[%emt 0:09:09] KN-KPP} h2 {[%emt 0:00:10]} 51. Ng3 {[%emt 0:00:04]} Kxb5 {[%emt 0:00:07]} 52. Ke4 {[%emt 0:00:48]} Kc5 {[%emt 0:01:59]} 53. Nh1 {[%emt 0:00:16]} Kc4 {[%emt 0:00:35]} 54. Ng3 {[%emt 0:00:16]} Kc5 {[%emt 0:00:14]} 55. Nh1 {[%emt 0:00:03]} Kc4 {[%emt 0:00:05]} 56. Ng3 {[%emt 0:00:03] Black defended with fortune.  Weighted Error Value: White=0.40/Black=0.43} 1/2-1/2

[Event "24th Hoogeschool Zeeland 2022"]
[Site "Vlissingen"]
[Date "2022.08.09"]
[Round "5.23"]
[White "Grochal, Joey"]
[Black "Boulahfa, Hicham"]
[Result "1-0"]
[ECO "A41"]
[WhiteElo "2290"]
[BlackElo "2090"]
[Annotator "TA"]
[PlyCount "57"]
[EventDate "2022.08.05"]
[EventType "swiss"]
[EventCountry "NED"]
[SourceTitle "playchess.com"]
[Source "ChessBase"]
[SourceQuality "1"]
[TimeControl "40/5400+30:1800+30"]

{[%evp 9,57,8,45,42,29,32,28,35,34,13,15,-14,23,27,34,22,47,48,91,81,89,86,85,85,229,230,540,556,581,562,579,558,481,522,630,406,564,554,495,166,29984,347,29985,29986,29988,29989,29989,29990,29990,29991]} 1. d4 {[%emt 0:00:03]} d6 {[%emt 0:00:05]} 2. Bg5 {[%emt 0:05:12]} g6 {[%emt 0:02:47]} 3. Nd2 {[%emt 0:02:46]} Bg7 {[%emt 0:00:12]} 4. c3 {[%emt 0:00:06]} Nd7 {[%emt 0:01:17]} 5. e4 {[%emt 0:01:48]} c6 {[%emt 0:00:32] [#]} 6. a4 $146 {[%emt 0:05:11] A41: 1 d4 d6: Tartakower System and Modern Defence.} ({Predecessor:} 6. f4 Qc7 7. Ngf3 Ngf6 8. Bd3 h6 9. Bxf6 Nxf6 10. O-O Nh5 11. Nh4 e5 12. dxe5 dxe5 {1-0 (22) Pavlovicius,V (2191)-Kasoshvili,T (2144) Vilnius 2014}) 6... Ngf6 {[%emt 0:02:23]} 7. Bd3 {[%emt 0:08:20]} O-O {[%emt 0:00:23]} 8. Ngf3 {[%emt 0:02:02] White has an edge.} Qc7 {[%emt 0:02:13]} 9. a5 {[%emt 0:03:21]} e5 {[%emt 0:00:11]} 10. h3 {[%emt 0:04:57]} Re8 {[%emt 0:01:36]} (10... d5 $5 {[%cal Rd5e4]}) 11. O-O {[%emt 0:03:32]} d5 {[%emt 0:03:47]} 12. Bxf6 {[%emt 0:10:48]} (12. dxe5 {with more complications.} Nxe5 13. Nxe5 Qxe5 14. f4) 12... Nxf6 {[%emt 0:01:20]} (12... Bxf6 {seems wilder.} 13. Re1 Qd8 14. Qc1 a6) 13. dxe5 {[%emt 0:01:28]} (13. Nxe5 Nxe4 14. Bxe4 (14. Nxe4 dxe4 15. Bxe4 Bxe5 $15) 14... dxe4 $11) 13... Nxe4 {[%emt 0:00:13]} 14. Bxe4 {[%emt 0:00:58]} ({Of course not} 14. Nxe4 $6 dxe4 15. Bxe4 Bxe5 $11) 14... dxe4 {[%emt 0:00:09]} 15. Nxe4 {[%emt 0:01:43]} Bxe5 {[%emt 0:00:45]} 16. Nxe5 {[%emt 0:07:06]} Rxe5 {[%emt 0:12:52] Loses the game.} (16... Qxe5 $16 17. Re1 Bf5) 17. Nf6+ $18 {[%emt 0:05:03]} Kh8 $2 {[%emt 0:05:49]} (17... Kg7 {is a better chance.}) 18. Qd4 {[%emt 0:03:34]} c5 {[%emt 0:02:00]} 19. Qh4 {[%emt 0:02:11][%csl Gf6][%cal Rh4h7] [#]} h5 {[%emt 0:08:25]} 20. Qf4 {[%emt 0:00:50][%cal Rf4h6]} g5 {[%emt 0:00:49]} 21. Qf3 {[%emt 0:00:28] Hoping for Rae1.} Be6 {[%emt 0:02:27]} 22. Rfe1 {[%emt 0:05:39]} h4 {[%emt 0:03:07]} 23. a6 {[%emt 0:04:42]} ({Not} 23. Qh5+ Kg7 24. f4 (24. Rxe5 Qxe5 25. Ng4 Bxg4 $11) 24... Rxe1+ 25. Rxe1 Qxf4 26. Qh7+ Kxf6 $14) 23... Rb8 {[%emt 0:05:12]} 24. axb7 $40 {[%emt 0:00:37][%mdl 128] Black is in trouble.} (24. Re3) 24... Rf5 $2 {[%emt 0:02:12]} (24... Rxe1+ $18 25. Rxe1 Qf4) 25. Qh5+ {[%emt 0:00:21]} Kg7 {[%emt 0:00:06] [#]} 26. Rxe6 {[%emt 0:00:10][%mdl 512] White mates.} Rxf6 {[%emt 0:01:40]} (26... fxe6 27. Qh7+) 27. Qxg5+ {[%emt 0:00:38]} Rg6 {[%emt 0:00:08]} 28. Rxg6+ {[%emt 0:00:16]} fxg6 {[%emt 0:00:06]} 29. Ra6 {[%emt 0:00:16] Weighted Error Value: White=0.27 (precise) /Black=0.65} 1-0

[Event "24th Hoogeschool Zeeland 2022"]
[Site "Vlissingen"]
[Date "2022.08.09"]
[Round "5.24"]
[White "Mensing, Adrian"]
[Black "Van Baar, Esper"]
[Result "1-0"]
[ECO "E04"]
[WhiteElo "1956"]
[BlackElo "2281"]
[Annotator "TA"]
[PlyCount "105"]
[EventDate "2022.08.05"]
[EventType "swiss"]
[EventCountry "NED"]
[SourceTitle "playchess.com"]
[Source "ChessBase"]
[SourceQuality "1"]
[TimeControl "40/5400+30:1800+30"]

{[%evp 11,105,0,0,0,0,0,0,0,0,0,14,10,44,0,243,79,179,44,47,-36,-42,-43,-33,-35,-44,-350,-256,-256,-254,-262,-227,-289,-252,-369,-358,-344,-262,-245,-242,-301,-279,-355,-330,-407,-398,-437,-371,-389,-362,-488,-289,-509,-506,-479,-217,-232,-135,-118,-133,-147,-133,-164,-166,-468,-450,-552,-557,-953,-950,-1133,-1131,-1116,-1133,-1136,-1132,-1141,-1147,-1188,-1135,-1980,-1961,-1870,-1917,-1834,-1754,-29978,-29979,-29983,-29984,-29985,-29986,-29986,-29987,-29987,-29988,-29987]} 1. d4 {[%emt 0:00:18]} Nf6 {[%emt 0:00:05]} 2. c4 {[%emt 0:00:14]} e6 {[%emt 0:00:07]} 3. g3 {[%emt 0:00:12]} d5 {[%emt 0:00:43]} 4. Bg2 {[%emt 0:00:11]} dxc4 {[%emt 0:00:07]} 5. Nf3 {[%emt 0:00:19]} c6 {[%emt 0:00:07]} 6. O-O {[%emt 0:00:19]} b5 {[%emt 0:00:15]} 7. Ne5 {[%emt 0:00:47] E04: Open Catalan: 5 Nf3.} Bb7 {[%emt 0:00:19]} 8. a4 {[%emt 0:00:11]} a6 {[%emt 0:00:04]} 9. b3 {[%emt 0:00:29] The position is equal.} cxb3 {[%emt 0:00:12]} 10. Bb2 {[%emt 0:00:09] 10.Qxb3 is more fashionable.} Qc8 {[%emt 0:10:12] [#]} 11. Nd2 $146 {[%emt 0:01:17]} ({Predecessor:} 11. Qxb3 Nbd7 12. Rc1 Nxe5 13. dxe5 Nd5 14. Nc3 Nxc3 15. Bxc3 Be7 16. Bb4 c5 17. Bxb7 Qxb7 18. Bxc5 Bxc5 19. Rxc5 {½-½ (25) Skatchkov,V (2283)-Somkin,K (2189) Cheliabinsk 2021}) 11... Nfd7 {[%emt 0:11:34]} 12. Qxb3 {[%emt 0:03:56]} (12. Nxb3 Nxe5 13. dxe5 c5 14. Bxb7 (14. axb5 Bxg2 15. Kxg2 axb5 $17) 14... Qxb7 $11) 12... Nb6 $2 {[%emt 0:05:19]} (12... Nxe5 $11 {and Black stays safe.} 13. dxe5 Nd7) 13. a5 $2 {[%emt 0:07:39]} (13. Qf3 $6 Qc7) (13. axb5 $18 axb5 14. Qf3) 13... Na4 {[%emt 0:02:14]} (13... N6d7 $16 {keeps fighting.}) 14. Ba3 {[%emt 0:00:24]} (14. Rxa4 $18 bxa4 15. Qxa4) 14... c5 $14 {[%emt 0:11:35]} 15. d5 {[%emt 0:08:34]} (15. Ne4 $14) 15... f6 $15 {[%emt 0:14:19]} 16. Qf3 $1 {[%emt 0:16:16] aiming for Qh5+.} fxe5 {[%emt 0:08:15]} 17. Qh5+ {[%emt 0:00:26]} Kd8 {[%emt 0:01:55]} 18. Qxe5 {[%emt 0:01:58][%mdl 8192]} (18. Qg5+ $1 $15 Ke8 19. Qh5+ Ke7 20. dxe6 Bxg2 21. Qf7+ Kd8 22. Kxg2) 18... Nd7 {[%emt 0:02:26]} 19. Qxe6 {[%emt 0:30:11]} Nf6 {[%emt 0:00:04]} 20. Qe3 {[%emt 0:00:51]} Bd6 {[%emt 0:01:28][%cal Bf8d6,Bd6e5,Be5c3][%mdl 32]} (20... Nxd5 21. Bxd5 Bxd5 22. Qg5+ Kc7 23. Qxd5 $14) 21. Qg5 {[%emt 0:05:48]} Qg4 {[%emt 0:03:39]} 22. Ne4 {[%emt 0:00:59]} (22. Qxg4 {only move.} Nxg4 23. Ne4) 22... Qxg5 $19 {[%emt 0:00:20]} 23. Nxg5 {[%emt 0:00:03]} Ke7 {[%emt 0:00:32]} (23... Nxd5 24. Rfd1 Nac3 25. e4 $17) 24. e4 {[%emt 0:00:31][%cal Oe4e5]} Be5 {[%emt 0:01:49]} 25. Ra2 {[%emt 0:00:39]} Rac8 {[%emt 0:07:26]} 26. Bh3 {[%emt 0:03:51]} Rb8 {[%emt 0:01:16]} 27. Be6 {[%emt 0:03:26]} Rhf8 {[%emt 0:04:45] Against Nf7} 28. Kg2 {[%emt 0:04:22]} h6 {[%emt 0:02:18]} 29. Nf3 {[%emt 0:00:17]} Bc3 {[%emt 0:00:43]} 30. Nh4 {[%emt 0:02:09]} Rfe8 {[%emt 0:02:49]} (30... Nxe4 $142 31. Re2 Ng5 32. Ng6+ Kd6 33. Nxf8 Rxf8) 31. Ng6+ $2 {[%emt 0:02:51]} (31. f3 {is a better defense.}) 31... Kd8 {[%emt 0:00:33][%cal Oe8e6] Threatens to win with ...Rxe6!} 32. f3 {[%emt 0:02:57] [#]} Kc7 {[%emt 0:02:06]} (32... Nxe4 $142 $1 {[%mdl 512]} 33. Bf7 (33. fxe4 $2 Rxe6 34. Rf8+ Re8 $19) 33... Nf6 34. Bxe8 Kxe8) 33. Bc1 {[%emt 0:00:26] And now Bf4+ would win.} Bc8 {[%emt 0:01:24]} ({Black should try} 33... Bxa5 $19 {[%cal Oe8e6] Hoping for ...Rxe6!} 34. Bf4+ Kb6 35. Bxb8 Rxb8) 34. Bf4+ {[%emt 0:01:53]} Kb7 {[%emt 0:00:03]} 35. Bf7 {[%emt 0:00:21] [#]} Rd8 $1 {[%emt 0:02:09][%cal Oc3a5]} 36. Ne7 {[%emt 0:01:53]} (36. Rb1 Bb4) 36... Bd7 {[%emt 0:00:29] Inhibits Nc6.} ({Don't do} 36... Bxa5 37. Nc6 (37. Bxb8 Rd7 $14) 37... Bd7 38. Nxa5+ (38. Nxb8 Rxb8 39. Bxb8 Kxb8 $18) 38... Kb6 39. Rxa4 (39. Bxb8 Rxb8 40. Rxa4 bxa4 $16) 39... bxa4 40. Nc4+ (40. Bxb8 Rxb8 41. Nc4+ Kc7 $16) 40... Ka7 41. Bxb8+ Rxb8 42. e5 $18) 37. e5 $2 {[%emt 0:00:36]} (37. Rb1 Rf8 38. Bg6) 37... g5 {[%emt 0:01:34]} 38. e6 {[%emt 0:01:15]} gxf4 {[%emt 0:00:30]} 39. gxf4 {[%emt 0:00:16]} Be8 {[%emt 0:00:44]} 40. Rd1 {[%emt 0:00:45]} Bxf7 {[%emt 0:01:44]} 41. exf7 {[%emt 0:01:51]} Rd7 {[%emt 0:02:13]} 42. d6 {[%emt 0:19:05]} Rf8 {[%emt 0:01:06]} 43. Ng6 {[%emt 0:00:06]} Rfxf7 {[%emt 0:00:28]} 44. Ne5 {[%emt 0:00:08]} Rg7+ {[%emt 0:00:52]} 45. Kh3 {[%emt 0:00:59]} Bxe5 {[%emt 0:02:34]} 46. fxe5 {[%emt 0:00:08]} Nc3 {[%emt 0:00:29] ( -> ...Nh5)} 47. exf6 {[%emt 0:06:55]} Rgf7 {[%emt 0:00:19]} 48. Re1 {[%emt 0:00:38]} Nxa2 {[%emt 0:00:12] Black mates.} 49. Re7 {[%emt 0:00:11]} c4 {[%emt 0:00:19]} 50. Kg4 {[%emt 0:00:08]} c3 {[%emt 0:00:20]} 51. Kf5 {[%emt 0:00:09]} c2 {[%emt 0:00:53]} 52. Ke6 {[%emt 0:00:12] [#]} c1=Q $1 {[%emt 0:00:55]} 53. Rxd7+ {[%emt 0:00:31][%mdl 32768] Weighted Error Value: White=0.84/Black=0.39. Loss on time!?} 1-0

[Event "24th Hoogeschool Zeeland 2022"]
[Site "Vlissingen"]
[Date "2022.08.10"]
[Round "6.1"]
[White "Santiago, Yago De Moura"]
[Black "Ponomariov, Ruslan"]
[Result "1/2-1/2"]
[ECO "D37"]
[WhiteElo "2513"]
[BlackElo "2642"]
[Annotator "TA"]
[PlyCount "54"]
[EventDate "2022.08.05"]
[EventType "swiss"]
[EventCountry "NED"]
[SourceTitle "playchess.com"]
[Source "ChessBase"]
[SourceQuality "1"]
[TimeControl "40/5400+30:1800+30"]

{[%evp 9,54,16,14,14,0,-22,26,20,22,17,29,25,41,34,34,5,16,0,12,0,0,0,0,-34,-27,-39,-26,-40,-36,-42,-48,-44,-40,-52,-60,-66,-63,-70,-58,-85,-78,-40,0,-11,0,0,0]} 1. d4 {[%emt 0:01:25]} Nf6 {[%emt 0:00:10]} 2. c4 {[%emt 0:00:13]} e6 {[%emt 0:00:09]} 3. Nf3 {[%emt 0:00:40]} d5 {[%emt 0:01:21]} 4. Nc3 {[%emt 0:00:21]} Be7 {[%emt 0:06:00]} 5. Bf4 {[%emt 0:04:06]} O-O {[%emt 0:00:43]} 6. a3 {[%emt 0:01:21] D37: Queen's Gambit Declined: 5 Bf4.} b6 {[%emt 0:06:24]} 7. Qc2 {[%emt 0:01:33]} c5 {[%emt 0:06:27]} (7... dxc4 $142 8. e4 Nc6) 8. Rd1 $11 {[%emt 0:17:58] White has an edge.} Bb7 {[%emt 0:10:04]} 9. cxd5 {[%emt 0:05:16]} exd5 {[%emt 0:01:00]} 10. e3 {[%emt 0:18:47]} Nbd7 {[%emt 0:02:35]} 11. Bd3 {[%emt 0:02:44] [#]} g6 $146 {[%emt 0:07:15]} ({Predecessor:} 11... a6 12. a4 Re8 13. O-O g6 14. Ne5 Rc8 15. Qe2 c4 16. Bb1 Nh5 17. Bh6 Nxe5 18. dxe5 {½-½ (46) Grischuk,A (2777)-Radjabov,T (2765) chess24.com INT 2020}) 12. dxc5 {[%emt 0:09:59]} bxc5 {[%emt 0:00:58]} 13. O-O {[%emt 0:03:50]} Qb6 {[%emt 0:00:54]} 14. Be2 {[%emt 0:04:03]} Rfd8 {[%emt 0:05:37]} 15. Na4 {[%emt 0:05:28]} Qc6 {[%emt 0:01:43]} 16. Ne5 {[%emt 0:00:52]} Nxe5 {[%emt 0:00:40]} 17. Bxe5 {[%emt 0:00:08]} Rac8 {[%emt 0:06:52]} ({Don't do} 17... d4 18. Bf3 Qb5 19. Bxb7 (19. exd4 Bxf3 20. gxf3 cxd4 $17) 19... Qxb7 20. exd4 $16 (20. Nxc5 Bxc5 21. Bxf6 Rdc8 $16)) 18. Bf3 {[%emt 0:02:06]} Ne4 {[%emt 0:00:52]} 19. Bxe4 {[%emt 0:05:31]} dxe4 {[%emt 0:00:07]} 20. b3 {[%emt 0:00:17]} Ba6 {[%emt 0:04:21] [#] And now ...Bd3 would win. A strong pair of Bishops.} 21. Rxd8+ {[%emt 0:01:17]} Rxd8 {[%emt 0:00:04]} 22. Rc1 {[%emt 0:00:17][%cal Oe5d4]} Qd5 {[%emt 0:00:59] Inhibits Bd4.} 23. Bc3 {[%emt 0:01:08]} Bd3 {[%emt 0:04:57]} 24. Qb2 {[%emt 0:01:53]} Bb5 {[%emt 0:09:06]} 25. h3 {[%emt 0:00:50]} Bxa4 {[%emt 0:05:25]} 26. bxa4 {[%emt 0:00:07]} Bf8 {[%emt 0:02:38]} 27. a5 {[%emt 0:02:10]} Qc6 {[%emt 0:02:28] Weighted Error Value: White=0.07 (flawless) /Black=0.06 (flawless)} 1/2-1/2

[Event "24th Hoogeschool Zeeland 2022"]
[Site "Vlissingen"]
[Date "2022.08.10"]
[Round "6.2"]
[White "Ikonnikov, Vyacheslav"]
[Black "Van den Doel, Erik"]
[Result "1/2-1/2"]
[ECO "D23"]
[WhiteElo "2493"]
[BlackElo "2589"]
[Annotator "TA"]
[PlyCount "90"]
[EventDate "2022.08.05"]
[EventType "swiss"]
[EventCountry "NED"]
[SourceTitle "playchess.com"]
[Source "ChessBase"]
[SourceQuality "1"]
[TimeControl "40/5400+30:1800+30"]

{[%evp 13,90,19,10,15,21,8,4,23,18,10,14,0,0,0,18,1,17,0,0,0,11,0,0,-6,38,-9,-10,-12,-9,-8,-7,-10,-4,-12,-16,-16,0,0,0,0,0,0,0,0,0,0,-2,-10,-8,-4,-15,-19,-21,-23,-32,-61,-5,-5,-11,-6,0,0,0,0,0,0,0,0,0,0,0,0,0,0,0,0,0,0,0]} 1. d4 {[%emt 0:00:04]} d5 {[%emt 0:00:12]} 2. Nf3 {[%emt 0:00:19]} Nf6 {[%emt 0:00:04]} 3. c4 {[%emt 0:00:11]} c6 {[%emt 0:00:04]} 4. Qb3 {[%emt 0:01:00]} dxc4 {[%emt 0:00:07]} 5. Qxc4 {[%emt 0:00:05]} Bf5 {[%emt 0:00:05]} 6. g3 {[%emt 0:00:24]} e6 {[%emt 0:00:24]} 7. Bg2 {[%emt 0:00:33]} Be7 {[%emt 0:00:05]} 8. O-O {[%emt 0:00:22] D23: Queen's Gambit Accepted: 3 Nf3 Nf6 sidelines.} O-O {[%emt 0:00:04]} 9. e3 {[%emt 0:12:10]} Nbd7 {[%emt 0:02:24]} 10. Qe2 $1 {[%emt 0:01:38] 10.Qe2 is better than 10.Rd1.} Rc8 {[%emt 0:16:18]} 11. Nc3 {[%emt 0:01:21]} b5 {[%emt 0:04:30]} 12. e4 {[%emt 0:22:04]} Bg6 {[%emt 0:01:17]} 13. e5 {[%emt 0:00:21]} Ne8 {[%emt 0:11:56][%cal Bf6e8,Be8c7,Bc7d5][%mdl 32] [#]} 14. Rd1 $146 {[%emt 0:04:33]} ({Predecessor:} 14. Be3 b4 15. Na4 Qa5 16. b3 Nc7 17. Nd2 Nd5 18. Rac1 Rfd8 19. h4 h6 20. Be4 Bxe4 21. Nxe4 {1-0 (59) Ippolito,D (2385)-Krush,I (2380) New York 2001}) 14... Nc7 {[%emt 0:03:40]} 15. Ne1 {[%emt 0:03:39]} b4 $1 {[%emt 0:03:27]} 16. Ne4 {[%emt 0:03:58]} Nd5 {[%emt 0:00:40]} 17. h4 {[%emt 0:00:37]} h6 {[%emt 0:03:14]} 18. Nd3 {[%emt 0:01:01]} c5 {[%emt 0:02:58]} (18... Qb6 {feels hotter.} 19. Be3 Qb5 20. Qf3 Nxe3 21. Qxe3 c5) 19. Nexc5 {[%emt 0:05:14]} (19. Nf4 $1 $14) 19... Nxc5 $11 {[%emt 0:00:42]} 20. dxc5 {[%emt 0:04:37]} Bxc5 {[%emt 0:00:22]} 21. Nxc5 {[%emt 0:09:23]} Rxc5 {[%emt 0:00:05]} 22. Be3 {[%emt 0:04:11]} Rc2 {[%emt 0:00:52]} 23. Qa6 {[%emt 0:00:22]} Rxb2 {[%emt 0:14:50]} 24. Rac1 {[%emt 0:02:07]} Bh5 {[%emt 0:10:05]} 25. Bd4 {[%emt 0:03:59] A strong pair of Bishops.} Bxd1 {[%emt 0:06:11]} 26. Bxb2 {[%emt 0:00:05]} Bh5 {[%emt 0:02:17][%cal Bd1h5,Bh5g6,Bg6e4][%mdl 32]} 27. Qxa7 {[%emt 0:01:02]} Qa8 {[%emt 0:01:21]} 28. Qd4 {[%emt 0:01:02]} Qxa2 {[%emt 0:00:39]} 29. g4 {[%emt 0:00:58]} ({Much weaker is} 29. Bxd5 Qxd5 30. Qxd5 (30. Qxb4 Bf3 $15) 30... exd5 $11) 29... Bg6 $1 {[%emt 0:08:44][%cal Od5f4]} 30. Bxd5 {[%emt 0:06:08]} (30. Rc4 {is interesting.} Qb1+ 31. Kh2 b3 32. h5) 30... Qxd5 {[%emt 0:01:11]} 31. Qxd5 {[%emt 0:00:31]} exd5 {[%emt 0:00:04][%mdl 4096] Endgame KRB-KRB} 32. Rc7 {[%emt 0:00:06]} d4 {[%emt 0:02:34] ...Rd8 is the strong threat.} 33. h5 {[%emt 0:06:28]} Be4 {[%emt 0:00:46] [#] Threatens to win with ...Rd8.} 34. e6 {[%emt 0:00:58][%cal Be5e6,Be6e7][%mdl 32]} Bf3 {[%emt 0:02:46]} (34... d3 $15) 35. e7 $1 {[%emt 0:01:10] The position is equal.} (35. Bxd4 f6 $17) 35... Re8 {[%emt 0:00:13] White should prevent ...d3.} 36. Rd7 $1 {[%emt 0:00:04]} b3 {[%emt 0:01:43]} (36... Bxg4 $2 37. Rd8 Bd7 38. Rxd7 $18) 37. Rd8 {[%emt 0:00:44]} Bc6 {[%emt 0:00:03]} 38. Bxd4 {[%emt 0:00:35]} f6 {[%emt 0:00:14]} 39. Bb2 {[%emt 0:02:13]} Kf7 {[%emt 0:00:21]} 40. Ba3 {[%emt 0:00:05]} Bf3 {[%emt 0:01:43]} ({But not} 40... Rxe7 41. Bxe7 Kxe7 42. Rb8 $16) 41. Rd4 {[%emt 0:30:05]} b2 {[%emt 0:03:41]} 42. Bxb2 {[%emt 0:00:00]} Rxe7 {[%emt 0:00:05]} 43. Rf4 {[%emt 0:00:00]} Re1+ {[%emt 0:03:16]} 44. Kh2 {[%emt 0:00:00]} Bd5 {[%emt 0:01:06]} 45. Bd4 {[%emt 0:00:00]} Re4 {[%emt 0:00:47] Weighted Error Value: White=0.05 (flawless) /Black=0.05 (flawless)} 1/2-1/2